[Event "The Kvibergspelen 2024"]
[Site "Kviberg Park Hotel & Conference, Krutvagen 2, Gothenburg, Sweden"]
[Date "2024.09.06"]
[Round "3.6"]
[White "Eriksson, Kristian"]
[Black "Grahn, Vidar"]
[Result "0-1"]
[TimeControl "15 minutes + 5 seconds per move from move one (Round 1 - 4) / 90 minutes + 30 seconds per move from move one (Round 5 - 8)"]
[BlackTitle "FM"]
[WhiteFideId "1705172"]
[BlackFideId "1744780"]
[WhiteElo "2051"]
[BlackElo "2219"]

1. e4 {[%clk 00:15:07]} {[%emt 00:00:03]} c5 {[%clk 00:15:09]} {[%emt
00:00:02]} 2. Nf3 {[%clk 00:15:09]} {[%emt 00:00:03]} e6 {[%clk 00:15:13]}
{[%emt 00:00:02]} 3. Nc3 {[%clk 00:15:07]} {[%emt 00:00:06]} Nc6 {[%clk
00:15:17]} {[%emt 00:00:01]} 4. d4 {[%clk 00:15:09]} {[%emt 00:00:03]} cxd4
{[%clk 00:15:20]} {[%emt 00:00:02]} 5. Nxd4 {[%clk 00:15:12]} {[%emt 00:00:02]}
Qc7 {[%clk 00:15:21]} {[%emt 00:00:04]} 6. Be2 {[%clk 00:14:55]} {[%emt
00:00:21]} Nf6 {[%clk 00:15:24]} {[%emt 00:00:02]} 7. Be3 {[%clk 00:14:32]}
{[%emt 00:00:28]} a6 {[%clk 00:15:28]} {[%emt 00:00:02]} 8. O-O {[%clk
00:14:19]} {[%emt 00:00:18]} Be7 {[%clk 00:15:31]} {[%emt 00:00:02]} 9. Kh1
{[%clk 00:13:29]} {[%emt 00:00:55]} O-O {[%clk 00:15:25]} {[%emt 00:00:11]} 10.
f4 {[%clk 00:13:28]} {[%emt 00:00:06]} d6 {[%clk 00:15:27]} {[%emt 00:00:02]}
11. Qe1 {[%clk 00:13:19]} {[%emt 00:00:15]} Nxd4 {[%clk 00:15:04]} {[%emt
00:00:28]} 12. Bxd4 {[%clk 00:13:21]} {[%emt 00:00:03]} b5 {[%clk 00:14:57]}
{[%emt 00:00:13]} 13. a3 {[%clk 00:13:22]} {[%emt 00:00:03]} Bb7 {[%clk
00:14:57]} {[%emt 00:00:05]} 14. Qg3 {[%clk 00:13:19]} {[%emt 00:00:08]} Rad8
{[%clk 00:13:59]} {[%emt 00:01:03]} 15. Rae1 {[%clk 00:12:26]} {[%emt
00:00:58]} Bc6 {[%clk 00:13:18]} {[%emt 00:00:46]} 16. Bd3 {[%clk 00:11:16]}
{[%emt 00:01:15]} Nh5 {[%clk 00:12:59]} {[%emt 00:00:23]} 17. Qg4 {[%clk
00:10:41]} {[%emt 00:00:41]} Nf6 {[%clk 00:12:54]} {[%emt 00:00:10]} 18. Qh3
{[%clk 00:09:34]} {[%emt 00:01:12]} e5 {[%clk 00:12:39]} {[%emt 00:00:20]} 19.
Be3 {[%clk 00:08:49]} {[%emt 00:00:50]} Qb7 {[%clk 00:12:05]} {[%emt 00:00:39]}
20. fxe5 {[%clk 00:08:35]} {[%emt 00:00:19]} dxe5 {[%clk 00:12:02]} {[%emt
00:00:08]} 21. Bg5 {[%clk 00:08:28]} {[%emt 00:00:12]} Qd7 {[%clk 00:10:57]}
{[%emt 00:01:09]} 22. Qh4 {[%clk 00:07:16]} {[%emt 00:01:18]} Qe6 {[%clk
00:10:14]} {[%emt 00:00:48]} 23. Rf3 {[%clk 00:06:19]} {[%emt 00:01:02]} h5
{[%clk 00:05:12]} {[%emt 00:05:07]} 24. Bxf6 {[%clk 00:04:39]} {[%emt
00:01:45]} Bxf6 {[%clk 00:05:15]} {[%emt 00:00:02]} 25. Qxh5 {[%clk 00:04:42]}
{[%emt 00:00:02]} g6 {[%clk 00:05:17]} {[%emt 00:00:03]} 26. Qh6 {[%clk
00:03:38]} {[%emt 00:01:09]} Bg7 {[%clk 00:05:12]} {[%emt 00:00:10]} 27. Qe3
{[%clk 00:03:18]} {[%emt 00:00:25]} Qg4 {[%clk 00:04:27]} {[%emt 00:00:49]} 28.
Rg3 {[%clk 00:02:59]} {[%emt 00:00:25]} Qf4 {[%clk 00:04:06]} {[%emt 00:00:24]}
29. Rf1 {[%clk 00:02:28]} {[%emt 00:00:38]} Qxe3 {[%clk 00:04:07]} {[%emt
00:00:04]} 30. Rxe3 {[%clk 00:02:32]} {[%emt 00:00:01]} Bh6 {[%clk 00:04:05]}
{[%emt 00:00:07]} 31. Re2 {[%clk 00:02:21]} {[%emt 00:00:17]} Bf4 {[%clk
00:03:35]} {[%emt 00:00:33]} 32. g3 {[%clk 00:02:06]} {[%emt 00:00:21]} Bh6
{[%clk 00:03:38]} {[%emt 00:00:01]} 33. Kg1 {[%clk 00:02:08]} {[%emt 00:00:04]}
Rb8 {[%clk 00:03:11]} {[%emt 00:00:33]} 34. Nd5 {[%clk 00:01:55]} {[%emt
00:00:17]} Kg7 {[%clk 00:02:37]} {[%emt 00:00:38]} 35. c4 {[%clk 00:01:37]}
{[%emt 00:00:24]} Rfd8 {[%clk 00:02:13]} {[%emt 00:00:29]} 36. Rd1 {[%clk
00:01:17]} {[%emt 00:00:26]} bxc4 {[%clk 00:01:44]} {[%emt 00:00:33]} 37. Bxc4
{[%clk 00:01:19]} {[%emt 00:00:03]} a5 {[%clk 00:01:23]} {[%emt 00:00:26]} 38.
Rc2 {[%clk 00:00:54]} {[%emt 00:00:29]} Ba4 {[%clk 00:01:16]} {[%emt 00:00:13]}
39. b3 {[%clk 00:00:48]} {[%emt 00:00:10]} Bxb3 {[%clk 00:01:20]} {[%emt
00:00:02]} 40. Bxb3 {[%clk 00:00:52]} {[%emt 00:00:01]} Rxb3 {[%clk 00:01:24]}
{[%emt 00:00:01]} 41. Rc7 {[%clk 00:00:41]} {[%emt 00:00:15]} Rxa3 {[%clk
00:01:14]} {[%emt 00:00:15]} 42. Rf1 {[%clk 00:00:40]} {[%emt 00:00:06]} Rf8
{[%clk 00:01:18]} {[%emt 00:00:02]} 43. Nf6 {[%clk 00:00:36]} {[%emt 00:00:08]}
Be3+ {[%clk 00:01:19]} {[%emt 00:00:05]} 44. Kg2 {[%clk 00:00:38]} {[%emt
00:00:04]} Ra2+ {[%clk 00:01:22]} {[%emt 00:00:02]} 45. Kf3 {[%clk 00:00:28]}
{[%emt 00:00:15]} Bb6 {[%clk 00:01:10]} {[%emt 00:00:13]} 46. Rb7 {[%clk
00:00:26]} {[%emt 00:00:10]} Bd4 {[%clk 00:01:06]} {[%emt 00:00:08]} 47. Nd5
{[%clk 00:00:21]} {[%emt 00:00:11]} Rxh2 {[%clk 00:01:02]} {[%emt 00:00:09]} 48.
Kg4 {[%clk 00:00:22]} {[%emt 00:00:04]} a4 {[%clk 00:00:56]} {[%emt 00:00:11]}
49. Nc7 {[%clk 00:00:24]} {[%emt 00:00:02]} Kg8 {[%clk 00:00:44]} {[%emt
00:00:17]} 50. Nb5 {[%clk 00:00:24]} {[%emt 00:00:06]} Bb2 {[%clk 00:00:32]}
{[%emt 00:00:17]} 51. Nd6 {[%clk 00:00:26]} {[%emt 00:00:03]} a3 {[%clk
00:00:27]} {[%emt 00:00:11]} 52. Ra7 {[%clk 00:00:19]} {[%emt 00:00:13]} Rd2
{[%clk 00:00:18]} {[%emt 00:00:11]} 53. Nxf7 {[%clk 00:00:22]} {[%emt
00:00:03]} Rh2 {[%clk 00:00:11]} {[%emt 00:00:13]} 54. Kg5 {[%clk 00:00:20]}
{[%emt 00:00:08]} a2 {[%clk 00:00:14]} {[%emt 00:00:02]} 55. Nh6+ {[%clk
00:00:23]} Rxh6 {[%clk 00:00:16]} {[%emt 00:00:03]} 56. Kxh6 {[%clk 00:00:25]}
{[%emt 00:00:02]} Rxf1 {[%clk 00:00:19]} {[%emt 00:00:03]} 0-1

[Event "The Kvibergspelen 2024"]
[Site "Kviberg Park Hotel & Conference, Krutvagen 2, Gothenburg, Sweden"]
[Date "2024.09.06"]
[Round "3.7"]
[White "Nord, Alexander"]
[Black "Nilsson, Oliver"]
[Result "1-0"]
[TimeControl "15 minutes + 5 seconds per move from move one (Round 1 - 4) / 90 minutes + 30 seconds per move from move one (Round 5 - 8)"]
[WhiteTitle "CM"]
[WhiteFideId "1738135"]
[BlackFideId "1730177"]
[WhiteElo "2209"]
[BlackElo "2050"]

1. d4 {[%clk 00:15:08]} {[%emt 00:00:03]} d5 {[%clk 00:15:06]} {[%emt
00:00:05]} 2. c4 {[%clk 00:15:12]} c6 {[%clk 00:15:07]} {[%emt 00:00:05]} 3.
Nc3 {[%clk 00:15:08]} {[%emt 00:00:07]} Nf6 {[%clk 00:15:07]} {[%emt 00:00:04]}
4. Nf3 {[%clk 00:15:08]} {[%emt 00:00:06]} g6 {[%clk 00:15:10]} {[%emt
00:00:03]} 5. cxd5 {[%clk 00:14:44]} {[%emt 00:00:29]} cxd5 {[%clk 00:15:10]}
{[%emt 00:00:04]} 6. Bf4 {[%clk 00:14:16]} {[%emt 00:00:32]} Nc6 {[%clk
00:15:12]} {[%emt 00:00:03]} 7. e3 {[%clk 00:14:08]} {[%emt 00:00:13]} Nh5
{[%clk 00:15:14]} {[%emt 00:00:04]} 8. Bg5 {[%clk 00:13:58]} {[%emt 00:00:15]}
h6 {[%clk 00:15:15]} {[%emt 00:00:04]} 9. Bh4 {[%clk 00:14:02]} Bg7 {[%clk
00:15:16]} {[%emt 00:00:04]} 10. Bd3 {[%clk 00:13:04]} {[%emt 00:01:03]} g5
{[%clk 00:14:09]} {[%emt 00:01:13]} 11. Bg3 {[%clk 00:13:07]} {[%emt 00:00:02]}
Nxg3 {[%clk 00:13:36]} {[%emt 00:00:38]} 12. hxg3 {[%clk 00:11:30]} {[%emt
00:01:41]} e6 {[%clk 00:13:36]} {[%emt 00:00:05]} 13. g4 {[%clk 00:10:29]}
{[%emt 00:01:06]} Bd7 {[%clk 00:11:56]} {[%emt 00:01:45]} 14. Kf1 {[%clk
00:06:10]} {[%emt 00:04:23]} Rc8 {[%clk 00:11:47]} {[%emt 00:00:15]} 15. Qd2
{[%clk 00:05:48]} {[%emt 00:00:28]} Qe7 {[%clk 00:11:33]} {[%emt 00:00:17]} 16.
a3 {[%clk 00:05:33]} {[%emt 00:00:21]} O-O {[%clk 00:11:12]} {[%emt 00:00:26]}
17. b4 {[%clk 00:05:25]} {[%emt 00:00:14]} f5 {[%clk 00:11:06]} {[%emt
00:00:10]} 18. gxf5 {[%clk 00:05:13]} {[%emt 00:00:18]} g4 {[%clk 00:10:07]}
{[%emt 00:01:04]} 19. Nh4 {[%clk 00:05:03]} {[%emt 00:00:15]} Qg5 {[%clk
00:09:49]} {[%emt 00:00:23]} 20. Ng6 {[%clk 00:04:35]} {[%emt 00:00:32]} Bxd4
{[%clk 00:08:13]} {[%emt 00:01:42]} 21. Nxf8 {[%clk 00:03:39]} {[%emt
00:01:00]} Rxf8 {[%clk 00:08:07]} {[%emt 00:00:11]} 22. Rd1 {[%clk 00:03:37]}
{[%emt 00:00:06]} Bxc3 {[%clk 00:05:03]} {[%emt 00:03:10]} 23. Qxc3 {[%clk
00:03:41]} {[%emt 00:00:01]} e5 {[%clk 00:04:44]} {[%emt 00:00:24]} 24. b5
{[%clk 00:03:17]} {[%emt 00:00:29]} e4 {[%clk 00:01:55]} {[%emt 00:02:54]} 25.
bxc6 {[%clk 00:02:56]} {[%emt 00:00:26]} Qxf5 {[%clk 00:01:58]} {[%emt
00:00:01]} 26. Rd2 {[%clk 00:02:06]} {[%emt 00:00:55]} Bxc6 {[%clk 00:01:57]}
{[%emt 00:00:07]} 27. Ba6 {[%clk 00:00:49]} {[%emt 00:01:22]} d4 {[%clk
00:01:31]} {[%emt 00:00:31]} 28. Qxd4 {[%clk 00:00:39]} {[%emt 00:00:15]} Rf7
{[%clk 00:00:22]} {[%emt 00:01:15]} 29. Bc4 {[%clk 00:00:36]} {[%emt 00:00:08]}
Bb5 {[%clk 00:00:25]} {[%emt 00:00:02]} 30. Rxh6 {[%clk 00:00:16]} {[%emt
00:00:24]} Bxc4+ {[%clk 00:00:08]} {[%emt 00:00:22]} 31. Qxc4 {[%clk 00:00:20]}
{[%emt 00:00:01]} Kg7 {[%clk 00:00:12]} {[%emt 00:00:01]} 32. Rhd6 {[%clk
00:00:20]} {[%emt 00:00:04]} g3 {[%clk 00:00:15]} {[%emt 00:00:03]} 33. Qd4+
{[%clk 00:00:21]} {[%emt 00:00:04]} Kh7 {[%clk 00:00:18]} {[%emt 00:00:02]} 34.
Rd7 {[%clk 00:00:22]} {[%emt 00:00:05]} Qb5+ {[%clk 00:00:19]} {[%emt
00:00:03]} 35. Kg1 {[%clk 00:00:15]} {[%emt 00:00:12]} gxf2+ {[%clk 00:00:12]}
{[%emt 00:00:12]} 36. Rxf2 {[%clk 00:00:14]} {[%emt 00:00:05]} Qxd7 {[%clk
00:00:07]} {[%emt 00:00:11]} 37. Qxe4+ {[%clk 00:00:16]} {[%emt 00:00:04]} Kg7
{[%clk 00:00:11]} 38. Qe5+ {[%clk 00:00:17]} {[%emt 00:00:03]} Kg8 {[%clk
00:00:13]} {[%emt 00:00:03]} 39. Qb8+ {[%clk 00:00:12]} {[%emt 00:00:09]} Kh7
{[%clk 00:00:10]} {[%emt 00:00:09]} 40. Rxf7+ {[%clk 00:00:15]} {[%emt
00:00:01]} Qxf7 {[%clk 00:00:14]} {[%emt 00:00:02]} 41. Qxa7 {[%clk 00:00:19]}
Qb3 {[%clk 00:00:10]} {[%emt 00:00:09]} 42. Qc5 {[%clk 00:00:18]} {[%emt
00:00:05]} Qd1+ {[%clk 00:00:12]} {[%emt 00:00:04]} 43. Kf2 {[%clk 00:00:21]}
{[%emt 00:00:02]} Qd2+ {[%clk 00:00:15]} {[%emt 00:00:01]} 44. Kg3 {[%clk
00:00:25]} {[%emt 00:00:03]} Qe1+ {[%clk 00:00:18]} {[%emt 00:00:01]} 45. Kf3
{[%clk 00:00:16]} {[%emt 00:00:13]} Qf1+ {[%clk 00:00:21]} {[%emt 00:00:03]} 46.
Kg3 {[%clk 00:00:19]} {[%emt 00:00:02]} Qe1+ {[%clk 00:00:24]} {[%emt
00:00:01]} 47. Kf4 {[%clk 00:00:17]} {[%emt 00:00:08]} Qh4+ {[%clk 00:00:25]}
{[%emt 00:00:04]} 48. Ke5 {[%clk 00:00:11]} {[%emt 00:00:10]} Qg5+ {[%clk
00:00:22]} {[%emt 00:00:09]} 49. Kd6 {[%clk 00:00:13]} {[%emt 00:00:03]} Qxg2
{[%clk 00:00:25]} {[%emt 00:00:02]} 50. Qf5+ {[%clk 00:00:10]} {[%emt
00:00:08]} Kg7 {[%clk 00:00:22]} {[%emt 00:00:09]} 51. Qe5+ {[%clk 00:00:13]}
{[%emt 00:00:01]} Kg6 {[%clk 00:00:13]} {[%emt 00:00:14]} 52. Qe6 {[%clk
00:00:14]} {[%emt 00:00:05]} Kg7 {[%clk 00:00:15]} {[%emt 00:00:02]} 53. e4
{[%clk 00:00:11]} {[%emt 00:00:08]} Qd2+ {[%clk 00:00:09]} {[%emt 00:00:12]} 54.
Ke7 {[%clk 00:00:08]} {[%emt 00:00:07]} Qg5+ {[%clk 00:00:09]} {[%emt
00:00:05]} 55. Ke8 {[%clk 00:00:11]} {[%emt 00:00:02]} Qb5+ {[%clk 00:00:11]}
{[%emt 00:00:04]} 56. Qd7+ {[%clk 00:00:14]} Qxd7+ {[%clk 00:00:12]} {[%emt
00:00:04]} 57. Kxd7 {[%clk 00:00:18]} {[%emt 00:00:02]} Kf6 {[%clk 00:00:17]}
58. Kd6 {[%clk 00:00:22]} {[%emt 00:00:01]} Kf7 {[%clk 00:00:18]} {[%emt
00:00:04]} 59. a4 {[%clk 00:00:19]} {[%emt 00:00:08]} 1-0

[Event "The Kvibergspelen 2024"]
[Site "Kviberg Park Hotel & Conference, Krutvagen 2, Gothenburg, Sweden"]
[Date "2024.09.06"]
[Round "3.8"]
[White "Kingsley, Elias"]
[Black "Andersson, Johan"]
[Result "1-0"]
[TimeControl "15 minutes + 5 seconds per move from move one (Round 1 - 4) / 90 minutes + 30 seconds per move from move one (Round 5 - 8)"]
[WhiteFideId "1775006"]
[BlackFideId "1703935"]
[WhiteElo "2047"]
[BlackElo "2158"]

1. c4 {[%clk 00:15:07]} {[%emt 00:00:03]} d6 {[%clk 00:15:05]} {[%emt
00:00:06]} 2. Nc3 {[%clk 00:15:02]} {[%emt 00:00:10]} e5 {[%clk 00:15:03]}
{[%emt 00:00:07]} 3. Nf3 {[%clk 00:14:30]} {[%emt 00:00:37]} f5 {[%clk
00:14:51]} {[%emt 00:00:17]} 4. d3 {[%clk 00:13:51]} {[%emt 00:00:45]} Nf6
{[%clk 00:14:48]} {[%emt 00:00:06]} 5. g3 {[%clk 00:13:49]} {[%emt 00:00:07]}
Be7 {[%clk 00:14:48]} {[%emt 00:00:05]} 6. Bg2 {[%clk 00:13:50]} {[%emt
00:00:04]} O-O {[%clk 00:14:49]} {[%emt 00:00:04]} 7. O-O {[%clk 00:13:51]}
{[%emt 00:00:05]} Qe8 {[%clk 00:14:50]} {[%emt 00:00:04]} 8. e4 {[%clk
00:13:10]} {[%emt 00:00:45]} Nc6 {[%clk 00:14:09]} {[%emt 00:00:46]} 9. Nd5
{[%clk 00:12:10]} {[%emt 00:01:05]} Bd8 {[%clk 00:13:54]} {[%emt 00:00:20]} 10.
Re1 {[%clk 00:09:23]} {[%emt 00:02:52]} Qh5 {[%clk 00:12:31]} {[%emt 00:01:27]}
11. Bg5 {[%clk 00:07:01]} {[%emt 00:02:28]} fxe4 {[%clk 00:11:40]} {[%emt
00:00:56]} 12. dxe4 {[%clk 00:06:19]} {[%emt 00:00:48]} Bg4 {[%clk 00:07:46]}
{[%emt 00:03:57]} 13. Bxf6 {[%clk 00:05:36]} {[%emt 00:00:49]} Bxf6 {[%clk
00:06:13]} {[%emt 00:01:38]} 14. h3 {[%clk 00:03:33]} {[%emt 00:02:08]} Bxh3
{[%clk 00:04:08]} {[%emt 00:02:10]} 15. Nxc7 {[%clk 00:02:19]} {[%emt
00:01:19]} Rad8 {[%clk 00:01:53]} {[%emt 00:02:20]} 16. Qd5+ {[%clk 00:01:35]}
{[%emt 00:00:48]} Rf7 {[%clk 00:01:54]} {[%emt 00:00:05]} 17. Bxh3 {[%clk
00:00:42]} {[%emt 00:00:58]} Qxh3 {[%clk 00:01:57]} {[%emt 00:00:02]} 18. Ne6
{[%clk 00:00:35]} {[%emt 00:00:12]} Nb4 {[%clk 00:01:27]} {[%emt 00:00:35]} 19.
Neg5 {[%clk 00:00:34]} {[%emt 00:00:06]} Nxd5 {[%clk 00:00:42]} {[%emt
00:00:51]} 20. Nxh3 {[%clk 00:00:37]} {[%emt 00:00:01]} Nb4 {[%clk 00:00:26]}
{[%emt 00:00:21]} 21. Red1 {[%clk 00:00:38]} {[%emt 00:00:04]} h6 {[%clk
00:00:00]} {[%emt 00:00:31]} 22. Kg2 {[%clk 00:00:38]} {[%emt 00:00:29]} 1-0

[Event "The Kvibergspelen 2024"]
[Site "Kviberg Park Hotel & Conference, Krutvagen 2, Gothenburg, Sweden"]
[Date "2024.09.06"]
[Round "3.9"]
[White "Muntean, Victor"]
[Black "Harila, Per"]
[Result "1-0"]
[TimeControl "15 minutes + 5 seconds per move from move one (Round 1 - 4) / 90 minutes + 30 seconds per move from move one (Round 5 - 8)"]
[WhiteFideId "1054414"]
[BlackFideId "1707248"]
[WhiteElo "2158"]
[BlackElo "1922"]

1. e4 {[%clk 00:15:09]} {[%emt 00:00:02]} d5 {[%clk 00:15:09]} {[%emt
00:00:01]} 2. exd5 {[%clk 00:15:13]} {[%emt 00:00:02]} Qxd5 {[%clk 00:15:12]}
{[%emt 00:00:02]} 3. Nc3 {[%clk 00:15:16]} {[%emt 00:00:01]} Qd8 {[%clk
00:15:16]} 4. d4 {[%clk 00:15:11]} {[%emt 00:00:12]} Nf6 {[%clk 00:15:15]}
{[%emt 00:00:04]} 5. Bc4 {[%clk 00:15:07]} {[%emt 00:00:09]} Bf5 {[%clk
00:15:12]} {[%emt 00:00:08]} 6. Qf3 {[%clk 00:14:37]} {[%emt 00:00:36]} Qc8
{[%clk 00:14:59]} {[%emt 00:00:16]} 7. Bf4 {[%clk 00:14:04]} {[%emt 00:00:38]}
e6 {[%clk 00:14:50]} {[%emt 00:00:15]} 8. h3 {[%clk 00:13:29]} {[%emt
00:00:41]} c6 {[%clk 00:14:42]} {[%emt 00:00:12]} 9. O-O-O {[%clk 00:13:22]}
{[%emt 00:00:11]} Bb4 {[%clk 00:14:07]} {[%emt 00:00:41]} 10. g4 {[%clk
00:13:12]} {[%emt 00:00:15]} Bg6 {[%clk 00:13:43]} {[%emt 00:00:29]} 11. Nge2
{[%clk 00:13:03]} {[%emt 00:00:15]} Nbd7 {[%clk 00:13:27]} {[%emt 00:00:21]} 12.
h4 {[%clk 00:12:35]} {[%emt 00:00:32]} h5 {[%clk 00:13:21]} {[%emt 00:00:10]}
13. g5 {[%clk 00:12:24]} {[%emt 00:00:17]} Nd5 {[%clk 00:12:50]} {[%emt
00:00:36]} 14. Ne4 {[%clk 00:12:03]} {[%emt 00:00:27]} O-O {[%clk 00:12:00]}
{[%emt 00:00:54]} 15. N4g3 {[%clk 00:10:50]} {[%emt 00:01:17]} N7b6 {[%clk
00:10:44]} {[%emt 00:01:22]} 16. Bb3 {[%clk 00:10:10]} {[%emt 00:00:45]} a5
{[%clk 00:10:36]} {[%emt 00:00:13]} 17. c3 {[%clk 00:09:59]} {[%emt 00:00:16]}
Be7 {[%clk 00:09:23]} {[%emt 00:01:17]} 18. Nxh5 {[%clk 00:09:56]} {[%emt
00:00:09]} a4 {[%clk 00:09:06]} {[%emt 00:00:22]} 19. Bc2 {[%clk 00:09:56]}
{[%emt 00:00:05]} Bxc2 {[%clk 00:08:45]} {[%emt 00:00:26]} 20. Kxc2 {[%clk
00:09:59]} {[%emt 00:00:02]} c5 {[%clk 00:08:20]} {[%emt 00:00:30]} 21. Be5
{[%clk 00:09:50]} {[%emt 00:00:14]} f6 {[%clk 00:08:09]} {[%emt 00:00:16]} 22.
gxf6 {[%clk 00:09:48]} {[%emt 00:00:07]} Nxf6 {[%clk 00:08:11]} {[%emt
00:00:03]} 23. Rhg1 {[%clk 00:08:49]} {[%emt 00:01:04]} Nxh5 {[%clk 00:07:56]}
{[%emt 00:00:20]} 24. Qxh5 {[%clk 00:08:52]} {[%emt 00:00:02]} Bf6 {[%clk
00:07:58]} {[%emt 00:00:03]} 25. Rg6 {[%clk 00:08:39]} {[%emt 00:00:17]} Bxe5
{[%clk 00:07:42]} {[%emt 00:00:23]} 26. Qxe5 {[%clk 00:08:42]} {[%emt
00:00:02]} Qd7 {[%clk 00:07:17]} {[%emt 00:00:29]} 27. dxc5 {[%clk 00:08:24]}
{[%emt 00:00:22]} Qf7 {[%clk 00:07:13]} {[%emt 00:00:09]} 28. Rdg1 {[%clk
00:08:25]} {[%emt 00:00:04]} Qf5+ {[%clk 00:06:54]} {[%emt 00:00:25]} 29. Qxf5
{[%clk 00:08:27]} {[%emt 00:00:03]} 1-0

[Event "The Kvibergspelen 2024"]
[Site "Kviberg Park Hotel & Conference, Krutvagen 2, Gothenburg, Sweden"]
[Date "2024.09.06"]
[Round "3.10"]
[White "Ottgard, Andreas"]
[Black "Mashhadi, Peyman"]
[Result "0-1"]
[TimeControl "15 minutes + 5 seconds per move from move one (Round 1 - 4) / 90 minutes + 30 seconds per move from move one (Round 5 - 8)"]
[WhiteFideId "1730592"]
[BlackFideId "1768581"]
[WhiteElo "1931"]
[BlackElo "2148"]

1. c4 {[%clk 00:15:07]} {[%emt 00:00:02]} g6 {[%clk 00:15:08]} {[%emt
00:00:03]} 2. g3 {[%clk 00:15:11]} {[%emt 00:00:01]} Bg7 {[%clk 00:15:09]}
{[%emt 00:00:04]} 3. Bg2 {[%clk 00:15:14]} {[%emt 00:00:02]} d6 {[%clk
00:15:06]} {[%emt 00:00:08]} 4. Nc3 {[%clk 00:15:07]} {[%emt 00:00:13]} Nf6
{[%clk 00:15:06]} {[%emt 00:00:04]} 5. e4 {[%clk 00:14:47]} {[%emt 00:00:26]}
O-O {[%clk 00:14:56]} {[%emt 00:00:14]} 6. Nge2 {[%clk 00:14:50]} {[%emt
00:00:03]} c5 {[%clk 00:14:59]} {[%emt 00:00:01]} 7. O-O {[%clk 00:14:51]}
{[%emt 00:00:04]} Nc6 {[%clk 00:15:02]} {[%emt 00:00:02]} 8. d3 {[%clk
00:14:51]} {[%emt 00:00:05]} a6 {[%clk 00:15:01]} {[%emt 00:00:07]} 9. a4
{[%clk 00:14:16]} {[%emt 00:00:39]} Rb8 {[%clk 00:14:42]} {[%emt 00:00:25]} 10.
h3 {[%clk 00:13:44]} {[%emt 00:00:36]} Ne8 {[%clk 00:14:41]} {[%emt 00:00:06]}
11. Rb1 {[%clk 00:12:22]} {[%emt 00:01:26]} Nc7 {[%clk 00:14:26]} {[%emt
00:00:20]} 12. Be3 {[%clk 00:11:34]} {[%emt 00:00:54]} Ne6 {[%clk 00:13:28]}
{[%emt 00:01:03]} 13. Kh2 {[%clk 00:09:49]} {[%emt 00:01:49]} Ned4 {[%clk
00:13:08]} {[%emt 00:00:26]} 14. f4 {[%clk 00:09:17]} {[%emt 00:00:37]} Bd7
{[%clk 00:11:08]} {[%emt 00:02:05]} 15. Qd2 {[%clk 00:08:33]} {[%emt 00:00:49]}
b5 {[%clk 00:10:02]} {[%emt 00:01:12]} 16. axb5 {[%clk 00:08:36]} {[%emt
00:00:02]} axb5 {[%clk 00:10:05]} {[%emt 00:00:02]} 17. cxb5 {[%clk 00:08:25]}
{[%emt 00:00:15]} Nxb5 {[%clk 00:09:50]} {[%emt 00:00:20]} 18. Nxb5 {[%clk
00:07:57]} {[%emt 00:00:33]} Rxb5 {[%clk 00:09:46]} {[%emt 00:00:10]} 19. d4
{[%clk 00:07:51]} {[%emt 00:00:09]} Na5 {[%clk 00:08:52]} {[%emt 00:01:01]} 20.
dxc5 {[%clk 00:05:08]} {[%emt 00:02:49]} Nc4 {[%clk 00:08:36]} {[%emt
00:00:21]} 21. Qc1 {[%clk 00:04:36]} {[%emt 00:00:36]} Nxe3 {[%clk 00:08:01]}
{[%emt 00:00:40]} 22. Qxe3 {[%clk 00:04:39]} {[%emt 00:00:02]} Rxc5 {[%clk
00:07:20]} {[%emt 00:00:46]} 23. b4 {[%clk 00:04:18]} {[%emt 00:00:26]} Rb5
{[%clk 00:06:26]} {[%emt 00:00:59]} 24. Nd4 {[%clk 00:03:56]} {[%emt 00:00:27]}
Qb6 {[%clk 00:05:47]} {[%emt 00:00:44]} 25. Nc2 {[%clk 00:03:22]} {[%emt
00:00:39]} Rc8 {[%clk 00:05:35]} {[%emt 00:00:17]} 26. Qxb6 {[%clk 00:03:20]}
{[%emt 00:00:08]} Rxb6 {[%clk 00:05:37]} {[%emt 00:00:02]} 27. Ne3 {[%clk
00:03:13]} {[%emt 00:00:12]} e6 {[%clk 00:05:19]} {[%emt 00:00:24]} 28. Rfd1
{[%clk 00:02:20]} {[%emt 00:00:57]} Rc3 {[%clk 00:05:02]} {[%emt 00:00:22]} 29.
Ng4 {[%clk 00:02:07]} {[%emt 00:00:20]} Bb5 {[%clk 00:03:52]} {[%emt 00:01:13]}
30. e5 {[%clk 00:02:00]} {[%emt 00:00:12]} d5 {[%clk 00:03:34]} {[%emt
00:00:24]} 31. Rb2 {[%clk 00:01:43]} {[%emt 00:00:21]} Ra6 {[%clk 00:03:09]}
{[%emt 00:00:31]} 32. Bf1 {[%clk 00:01:34]} {[%emt 00:00:13]} Bxf1 {[%clk
00:02:42]} {[%emt 00:00:32]} 33. Rxf1 {[%clk 00:01:37]} {[%emt 00:00:02]} h5
{[%clk 00:02:35]} {[%emt 00:00:12]} 34. Nf2 {[%clk 00:01:39]} {[%emt 00:00:03]}
Bf8 {[%clk 00:02:30]} {[%emt 00:00:11]} 35. Nd1 {[%clk 00:01:17]} {[%emt
00:00:26]} Rc4 {[%clk 00:02:04]} {[%emt 00:00:30]} 36. b5 {[%clk 00:01:13]}
{[%emt 00:00:10]} Rb6 {[%clk 00:02:06]} {[%emt 00:00:02]} 37. Ne3 {[%clk
00:01:06]} {[%emt 00:00:12]} Rc3 {[%clk 00:02:02]} {[%emt 00:00:10]} 38. Nd1
{[%clk 00:00:52]} {[%emt 00:00:19]} Rc5 {[%clk 00:01:57]} {[%emt 00:00:09]} 39.
Ne3 {[%clk 00:00:16]} {[%emt 00:00:41]} d4 {[%clk 00:01:59]} {[%emt 00:00:04]}
40. Nc2 {[%clk 00:00:16]} {[%emt 00:00:05]} d3 {[%clk 00:01:59]} {[%emt
00:00:04]} 41. Nd4 {[%clk 00:00:16]} {[%emt 00:00:06]} Rc4 {[%clk 00:01:52]}
{[%emt 00:00:11]} 42. Nf3 {[%clk 00:00:10]} {[%emt 00:00:11]} Bc5 {[%clk
00:01:20]} {[%emt 00:00:37]} 43. Rd1 {[%clk 00:00:13]} {[%emt 00:00:02]} Ba3
{[%clk 00:00:32]} {[%emt 00:00:53]} 44. Ra2 {[%clk 00:00:12]} {[%emt 00:00:06]}
Rc2+ {[%clk 00:00:29]} {[%emt 00:00:08]} 45. Rxc2 {[%clk 00:00:06]} {[%emt
00:00:11]} dxc2 {[%clk 00:00:32]} {[%emt 00:00:02]} 46. Rd8+ {[%clk 00:00:09]}
{[%emt 00:00:03]} Kg7 {[%clk 00:00:29]} {[%emt 00:00:07]} 47. Ng5 {[%clk
00:00:06]} {[%emt 00:00:08]} c1=Q {[%clk 00:00:24]} {[%emt 00:00:11]} 0-1